[Event "Live Chess"]
[Site "Chess.com"]
[Date "2023.05.21"]
[Round "-"]
[White "Rusty_Bridges"]
[Black "Mugzwang"]
[Result "1-0"]
[WhiteElo "1530"]
[BlackElo "1437"]
[TimeControl "300"]
[EndTime "8:39:25 PDT"]
[Termination "Rusty_Bridges won by checkmate"]

1. e4 {[%clk 0:04:55.4]} 1... e6 {[%clk 0:04:58]} 2. f4 {[%clk 0:04:52.2]} 2...
d5 {[%clk 0:04:54.5]} 3. exd5 {[%clk 0:04:49.5]} 3... Qxd5 {[%clk 0:04:48.1]} 4.
Nf3 {[%clk 0:04:47.9]} 4... Nf6 {[%clk 0:04:40.6]} 5. Nc3 {[%clk 0:04:45.6]}
5... Qd8 {[%clk 0:04:39.3]} 6. d4 {[%clk 0:04:40.5]} 6... Bb4 {[%clk 0:04:36.7]}
7. Bd2 {[%clk 0:04:37.9]} 7... O-O {[%clk 0:04:31.4]} 8. Bd3 {[%clk 0:04:34.3]}
8... Nc6 {[%clk 0:04:16.9]} 9. Ne2 {[%clk 0:04:25.1]} 9... Bxd2+ {[%clk
0:04:13]} 10. Qxd2 {[%clk 0:04:23.5]} 10... Qe7 {[%clk 0:04:05.3]} 11. O-O
{[%clk 0:04:21]} 11... Nb4 {[%clk 0:03:58.3]} 12. c3 {[%clk 0:04:15.7]} 12...
Nxd3 {[%clk 0:03:56.8]} 13. Qxd3 {[%clk 0:04:14.1]} 13... b6 {[%clk 0:03:48.9]}
14. Ne5 {[%clk 0:04:07.3]} 14... Bb7 {[%clk 0:03:43.5]} 15. Ng3 {[%clk
0:04:01.9]} 15... Nd7 {[%clk 0:03:24.1]} 16. Rae1 {[%clk 0:03:44.3]} 16... Rad8
{[%clk 0:03:11.3]} 17. Ne4 {[%clk 0:03:03.9]} 17... Nxe5 {[%clk 0:03:00]} 18.
fxe5 {[%clk 0:03:01.2]} 18... c5 {[%clk 0:02:30.7]} 19. Nd6 {[%clk 0:02:51.3]}
19... Bd5 {[%clk 0:02:27.1]} 20. b3 {[%clk 0:02:35.8]} 20... Qg5 {[%clk
0:02:01.9]} 21. Rf2 {[%clk 0:02:23.2]} 21... f6 {[%clk 0:01:45.8]} 22. c4 {[%clk
0:02:01.5]} 22... Ba8 {[%clk 0:01:39.6]} 23. Qh3 {[%clk 0:01:36.6]} 23... fxe5
{[%clk 0:01:21.3]} 24. Qxe6+ {[%clk 0:01:27.8]} 24... Kh8 {[%clk 0:01:10.7]} 25.
d5 {[%clk 0:01:14.1]} 25... Rxf2 {[%clk 0:00:40.3]} 26. Kxf2 {[%clk 0:01:11.8]}
26... Rf8+ {[%clk 0:00:38.7]} 27. Kg1 {[%clk 0:01:08.7]} 27... Qd2 {[%clk
0:00:25.5]} 28. Nf7+ {[%clk 0:00:36]} 28... Rxf7 {[%clk 0:00:18.9]} 29. Qe8+
{[%clk 0:00:31.3]} 29... Rf8 {[%clk 0:00:16]} 30. Qxf8# {[%clk 0:00:30.1]} 1-0

[Event "Live Chess"]
[Site "Chess.com"]
[Date "2023.05.21"]
[Round "-"]
[White "domrobson"]
[Black "AttackingSnowLeopard"]
[Result "0-1"]
[WhiteElo "1806"]
[BlackElo "2168"]
[TimeControl "300"]
[EndTime "8:39:31 PDT"]
[Termination "AttackingSnowLeopard won by resignation"]

1. d4 {[%clk 0:04:58.7]} 1... d5 {[%clk 0:04:58.7]} 2. c4 {[%clk 0:04:56.7]}
2... c6 {[%clk 0:04:47.2]} 3. Nf3 {[%clk 0:04:55.1]} 3... Nf6 {[%clk 0:04:45.5]}
4. Nc3 {[%clk 0:04:53.2]} 4... dxc4 {[%clk 0:04:43.4]} 5. e4 {[%clk 0:04:49.7]}
5... b5 {[%clk 0:04:41.9]} 6. e5 {[%clk 0:04:45.8]} 6... Nd5 {[%clk 0:04:40.2]}
7. Ne4 {[%clk 0:04:40.8]} 7... e6 {[%clk 0:04:38.7]} 8. Nc5 {[%clk 0:04:39.5]}
8... Bxc5 {[%clk 0:04:37]} 9. dxc5 {[%clk 0:04:39.4]} 9... O-O {[%clk
0:04:35.6]} 10. Qc2 {[%clk 0:04:36.4]} 10... Nd7 {[%clk 0:04:33.6]} 11. b4
{[%clk 0:04:34.3]} 11... cxb3 {[%clk 0:04:31.4]} 12. axb3 {[%clk 0:04:33.2]}
12... Qc7 {[%clk 0:04:27.5]} 13. Bb2 {[%clk 0:04:30.9]} 13... a5 {[%clk
0:04:25.9]} 14. Bd3 {[%clk 0:04:28.6]} 14... h6 {[%clk 0:04:23.7]} 15. O-O
{[%clk 0:04:27.1]} 15... Nb4 {[%clk 0:04:22.4]} 16. Qe2 {[%clk 0:04:25.4]} 16...
Nxd3 {[%clk 0:04:21.4]} 17. Qxd3 {[%clk 0:04:24.4]} 17... Nxc5 {[%clk
0:04:20.9]} 18. Qc2 {[%clk 0:04:23.5]} 18... Nd7 {[%clk 0:04:17.3]} 19. Rfe1
{[%clk 0:04:19.3]} 19... Bb7 {[%clk 0:04:14.7]} 20. Rac1 {[%clk 0:04:17.9]}
20... c5 {[%clk 0:04:13.4]} 21. Nd4 {[%clk 0:04:16]} 21... Qb6 {[%clk 0:04:09]}
22. Nf3 {[%clk 0:04:13.8]} 22... Bxf3 {[%clk 0:04:07.5]} 23. gxf3 {[%clk
0:04:12.2]} 23... Rac8 {[%clk 0:04:06.8]} 24. Red1 {[%clk 0:04:11]} 24... Nb8
{[%clk 0:04:05]} 25. Qe4 {[%clk 0:04:07.5]} 25... c4 {[%clk 0:04:01.7]} 26. bxc4
{[%clk 0:04:05.9]} 26... Rxc4 {[%clk 0:04:00.5]} 27. Rxc4 {[%clk 0:04:03.9]}
27... bxc4 {[%clk 0:03:59.4]} 28. Bd4 {[%clk 0:04:01.6]} 28... Qc6 {[%clk
0:03:57.6]} 29. Qxc6 {[%clk 0:03:59.6]} 29... Nxc6 {[%clk 0:03:56.1]} 30. Bc3
{[%clk 0:03:58.2]} 30... Nb4 {[%clk 0:03:54.3]} 31. Rd4 {[%clk 0:03:56.1]} 31...
Rc8 {[%clk 0:03:52.2]} 32. Kf1 {[%clk 0:03:53.9]} 32... Kh7 {[%clk 0:03:48.3]}
33. Ke2 {[%clk 0:03:53.4]} 33... Kg6 {[%clk 0:03:47.4]} 34. Kd2 {[%clk
0:03:52.7]} 34... Kf5 {[%clk 0:03:43]} 35. Kc1 {[%clk 0:03:49]} 35... Na2+
{[%clk 0:03:40.8]} 36. Kb2 {[%clk 0:03:47.7]} 36... Nxc3 {[%clk 0:03:40.4]} 37.
Kxc3 {[%clk 0:03:47.6]} 37... Kxe5 {[%clk 0:03:39.8]} 38. Rd7 {[%clk 0:03:43.2]}
38... Kf6 {[%clk 0:03:35.2]} 39. Rxf7+ {[%clk 0:03:42.1]} 0-1

[Event "Live Chess"]
[Site "Chess.com"]
[Date "2023.05.21"]
[Round "-"]
[White "MarkLim1"]
[Black "Dhaydon19"]
[Result "0-1"]
[WhiteElo "1711"]
[BlackElo "2689"]
[TimeControl "300"]
[EndTime "8:39:37 PDT"]
[Termination "Dhaydon19 won by resignation"]

1. e4 {[%clk 0:04:58.4]} 1... c6 {[%clk 0:04:58.4]} 2. d4 {[%clk 0:04:56.3]}
2... d5 {[%clk 0:04:58.3]} 3. exd5 {[%clk 0:04:55.5]} 3... cxd5 {[%clk
0:04:57.6]} 4. Bd3 {[%clk 0:04:54.9]} 4... Nc6 {[%clk 0:04:57.3]} 5. c3 {[%clk
0:04:54.3]} 5... Nf6 {[%clk 0:04:56.7]} 6. Bf4 {[%clk 0:04:51.8]} 6... g6 {[%clk
0:04:56.3]} 7. Nd2 {[%clk 0:04:50.9]} 7... Bf5 {[%clk 0:04:55.5]} 8. Bxf5 {[%clk
0:04:50.1]} 8... gxf5 {[%clk 0:04:55.3]} 9. Ngf3 {[%clk 0:04:49.3]} 9... e6
{[%clk 0:04:54.9]} 10. O-O {[%clk 0:04:47.7]} 10... Bd6 {[%clk 0:04:54.5]} 11.
Bxd6 {[%clk 0:04:46.2]} 11... Qxd6 {[%clk 0:04:53.6]} 12. Re1 {[%clk 0:04:45]}
12... O-O-O {[%clk 0:04:52.7]} 13. Ne5 {[%clk 0:04:38.7]} 13... Qc7 {[%clk
0:04:50.5]} 14. Ndf3 {[%clk 0:04:37.9]} 14... Rhg8 {[%clk 0:04:48.2]} 15. Qe2
{[%clk 0:04:36.5]} 15... Ng4 {[%clk 0:04:46.4]} 16. h3 {[%clk 0:04:33.7]} 16...
Ngxe5 {[%clk 0:04:40.9]} 17. Nxe5 {[%clk 0:04:32.6]} 17... Rg7 {[%clk
0:04:39.7]} 18. a4 {[%clk 0:04:27.5]} 18... Rdg8 {[%clk 0:04:38.3]} 19. g3
{[%clk 0:04:26.8]} 19... f4 {[%clk 0:04:36.2]} 20. g4 {[%clk 0:04:25]} 20... h5
{[%clk 0:04:35]} 21. f3 {[%clk 0:04:23.8]} 21... hxg4 {[%clk 0:04:33.8]} 22.
fxg4 {[%clk 0:04:22.7]} 22... Rh7 {[%clk 0:04:29.9]} 23. Kh2 {[%clk 0:04:20]}
23... f6 {[%clk 0:04:25.8]} 24. Nxc6 {[%clk 0:04:11.2]} 24... f3+ {[%clk
0:04:24.3]} 0-1

[Event "Live Chess"]
[Site "Chess.com"]
[Date "2023.05.21"]
[Round "-"]
[White "Ed_Knox"]
[Black "onemoretime1975"]
[Result "0-1"]
[WhiteElo "1473"]
[BlackElo "1836"]
[TimeControl "300"]
[EndTime "8:40:10 PDT"]
[Termination "onemoretime1975 won by checkmate"]

1. d4 {[%clk 0:04:56.6]} 1... d5 {[%clk 0:04:58.3]} 2. Bf4 {[%clk 0:04:56]} 2...
e6 {[%clk 0:04:54.3]} 3. e3 {[%clk 0:04:55]} 3... Bd6 {[%clk 0:04:53.3]} 4. Bxd6
{[%clk 0:04:53.8]} 4... Qxd6 {[%clk 0:04:51.9]} 5. f4 {[%clk 0:04:53.3]} 5... f5
{[%clk 0:04:49.8]} 6. Nf3 {[%clk 0:04:52.6]} 6... Nf6 {[%clk 0:04:47.9]} 7. Nbd2
{[%clk 0:04:50.7]} 7... Ne4 {[%clk 0:04:46]} 8. Bd3 {[%clk 0:04:47.7]} 8... Nxd2
{[%clk 0:04:42.5]} 9. Nxd2 {[%clk 0:04:45.7]} 9... O-O {[%clk 0:04:40.6]} 10.
Qf3 {[%clk 0:04:43.4]} 10... Bd7 {[%clk 0:04:36.7]} 11. O-O-O {[%clk 0:04:42.1]}
11... b5 {[%clk 0:04:20.5]} 12. h4 {[%clk 0:04:39.5]} 12... b4 {[%clk
0:04:18.3]} 13. g4 {[%clk 0:04:37]} 13... g6 {[%clk 0:04:14]} 14. h5 {[%clk
0:04:32.1]} 14... a5 {[%clk 0:04:07.9]} 15. hxg6 {[%clk 0:04:28.9]} 15... hxg6
{[%clk 0:04:06.9]} 16. Qh3 {[%clk 0:04:27.5]} 16... Kf7 {[%clk 0:04:04.5]} 17.
Qh7+ {[%clk 0:04:13.2]} 17... Ke8 {[%clk 0:04:03.3]} 18. Qxg6+ {[%clk
0:04:04.8]} 18... Kd8 {[%clk 0:04:02.3]} 19. g5 {[%clk 0:03:53.3]} 19... a4
{[%clk 0:03:57.9]} 20. Rh8 {[%clk 0:03:44.4]} 20... b3 {[%clk 0:03:45.9]} 21.
Qf6+ {[%clk 0:03:36.4]} 21... Ke8 {[%clk 0:03:38.5]} 22. cxb3 {[%clk 0:03:28.2]}
22... axb3 {[%clk 0:03:36.2]} 23. axb3 {[%clk 0:03:25.1]} 23... Ra1+ {[%clk
0:03:32.4]} 24. Nb1 {[%clk 0:03:22.5]} 24... Nc6 {[%clk 0:03:21.8]} 25. Qg6+
{[%clk 0:03:04.8]} 25... Kd8 {[%clk 0:03:19]} 26. Rdh1 {[%clk 0:02:50.1]} 26...
Nb4 {[%clk 0:03:13]} 27. Qf6+ {[%clk 0:02:45]} 27... Kc8 {[%clk 0:03:03]} 28.
Rxf8+ {[%clk 0:02:38.4]} 28... Kb7 {[%clk 0:03:01.3]} 29. Rd1 {[%clk 0:02:12]}
29... Qc6+ {[%clk 0:02:41.6]} 30. Kd2 {[%clk 0:02:10.8]} 30... Nxd3 {[%clk
0:02:36.7]} 31. Kxd3 {[%clk 0:02:06.1]} 31... Qa6+ {[%clk 0:02:28.6]} 32. Kc2
{[%clk 0:01:52.4]} 32... Qe2+ {[%clk 0:02:20.5]} 33. Rd2 {[%clk 0:01:46.6]}
33... Qxe3 {[%clk 0:02:17.3]} 34. Qd8 {[%clk 0:01:35]} 34... Qe4+ {[%clk
0:02:10.8]} 35. Kc3 {[%clk 0:01:26.2]} 35... Qe3+ {[%clk 0:01:47]} 36. Kc2
{[%clk 0:01:05.6]} 36... Qe4+ {[%clk 0:01:40.4]} 37. Kc1 {[%clk 0:01:02.5]}
37... Rxb1# {[%clk 0:01:37.4]} 0-1

[Event "Live Chess"]
[Site "Chess.com"]
[Date "2023.05.21"]
[Round "-"]
[White "Olisingapore"]
[Black "Crowded_House"]
[Result "0-1"]
[WhiteElo "1809"]
[BlackElo "1621"]
[TimeControl "300"]
[EndTime "8:40:10 PDT"]
[Termination "Crowded_House won by resignation"]

1. d4 {[%clk 0:04:57.3]} 1... e6 {[%clk 0:04:59.5]} 2. c4 {[%clk 0:04:56.5]}
2... d5 {[%clk 0:04:58]} 3. Nf3 {[%clk 0:04:49.7]} 3... c6 {[%clk 0:04:56.5]} 4.
g3 {[%clk 0:04:48.6]} 4... Nf6 {[%clk 0:04:55.4]} 5. Bg2 {[%clk 0:04:48.3]} 5...
Nbd7 {[%clk 0:04:53.8]} 6. O-O {[%clk 0:04:48.1]} 6... Bd6 {[%clk 0:04:51.6]} 7.
Nc3 {[%clk 0:04:47.5]} 7... Qc7 {[%clk 0:04:49.1]} 8. Nd2 {[%clk 0:04:46.9]}
8... O-O {[%clk 0:04:46.7]} 9. e4 {[%clk 0:04:46.3]} 9... dxe4 {[%clk 0:04:45]}
10. Ndxe4 {[%clk 0:04:46.2]} 10... Nxe4 {[%clk 0:04:43.9]} 11. Nxe4 {[%clk
0:04:46.1]} 11... Be7 {[%clk 0:04:40.5]} 12. Bf4 {[%clk 0:04:39]} 12... Qd8
{[%clk 0:04:36.6]} 13. Re1 {[%clk 0:04:30.7]} 13... Nf6 {[%clk 0:04:35.6]} 14.
Qd3 {[%clk 0:04:28.3]} 14... Nxe4 {[%clk 0:04:31.9]} 15. Bxe4 {[%clk 0:04:27.4]}
15... g6 {[%clk 0:04:28.1]} 16. Bh6 {[%clk 0:04:23.7]} 16... Re8 {[%clk
0:04:25.2]} 17. d5 {[%clk 0:04:21.2]} 17... cxd5 {[%clk 0:04:19.9]} 18. cxd5
{[%clk 0:04:08]} 18... exd5 {[%clk 0:04:12.7]} 19. Bxd5 {[%clk 0:04:07.3]} 19...
Be6 {[%clk 0:04:03.8]} 20. Rad1 {[%clk 0:04:05.8]} 20... Bxd5 {[%clk 0:03:59.2]}
21. Qxd5 {[%clk 0:04:05.7]} 21... Qxd5 {[%clk 0:03:57.8]} 22. Rxd5 {[%clk
0:04:05.6]} 22... Bf8 {[%clk 0:03:50.4]} 23. Bxf8 {[%clk 0:03:56.8]} 23... Rxe1+
{[%clk 0:03:46.4]} 24. Kg2 {[%clk 0:03:54]} 24... Kxf8 {[%clk 0:03:43.3]} 25.
Rd7 {[%clk 0:03:53.7]} 25... Rb8 {[%clk 0:03:41]} 26. h4 {[%clk 0:03:50.5]}
26... Re2 {[%clk 0:03:40]} 0-1

[Event "Live Chess"]
[Site "Chess.com"]
[Date "2023.05.21"]
[Round "-"]
[White "viktorskliarov"]
[Black "FlyingChessKestrel13"]
[Result "1/2-1/2"]
[WhiteElo "2627"]
[BlackElo "2073"]
[TimeControl "300"]
[EndTime "8:40:24 PDT"]
[Termination "Game drawn by agreement"]

1. e4 {[%clk 0:04:57.7]} 1... c6 {[%clk 0:04:56.9]} 2. d4 {[%clk 0:04:55.6]}
2... d5 {[%clk 0:04:55]} 3. e5 {[%clk 0:04:54.8]} 3... Bf5 {[%clk 0:04:52.9]} 4.
Nf3 {[%clk 0:04:54]} 4... e6 {[%clk 0:04:51.1]} 5. Be2 {[%clk 0:04:53.3]} 5...
Ne7 {[%clk 0:04:47.9]} 6. O-O {[%clk 0:04:52.7]} 6... Nc8 {[%clk 0:04:47.3]} 7.
a4 {[%clk 0:04:49.7]} 7... Be7 {[%clk 0:04:46.5]} 8. c3 {[%clk 0:04:45.1]} 8...
Nd7 {[%clk 0:04:44.9]} 9. b4 {[%clk 0:04:42.4]} 9... O-O {[%clk 0:04:43.1]} 10.
Na3 {[%clk 0:04:40.7]} 10... f6 {[%clk 0:04:40.6]} 11. Bf4 {[%clk 0:04:37.8]}
11... fxe5 {[%clk 0:04:39.6]} 12. Nxe5 {[%clk 0:04:36.7]} 12... Nxe5 {[%clk
0:04:39.1]} 13. Bxe5 {[%clk 0:04:36.6]} 13... Bf6 {[%clk 0:04:38.2]} 14. Bxf6
{[%clk 0:04:25.9]} 14... Qxf6 {[%clk 0:04:36.8]} 15. Bf3 {[%clk 0:04:21.3]}
15... Nd6 {[%clk 0:04:34.8]} 16. Re1 {[%clk 0:04:17.6]} 16... Ne4 {[%clk
0:04:32.8]} 17. Bxe4 {[%clk 0:04:06.1]} 17... Bxe4 {[%clk 0:04:29.8]} 18. f3
{[%clk 0:04:04.8]} 18... Bf5 {[%clk 0:04:28.3]} 19. Re5 {[%clk 0:03:56.1]} 19...
Rae8 {[%clk 0:04:26.8]} 20. Qe2 {[%clk 0:03:52.2]} 20... Qg6 {[%clk 0:04:15.6]}
21. Re1 {[%clk 0:03:50.7]} 21... Rf6 {[%clk 0:04:12.3]} 22. b5 {[%clk
0:03:01.1]} 22... h5 {[%clk 0:03:59.3]} 23. Qf2 {[%clk 0:02:31.2]} 23... Qh6
{[%clk 0:03:36.3]} 24. c4 {[%clk 0:02:19.9]} 24... Rd8 {[%clk 0:03:21.5]} 25. c5
{[%clk 0:02:14]} 25... h4 {[%clk 0:03:13.4]} 26. a5 {[%clk 0:02:07]} 26... a6
{[%clk 0:03:03.6]} 27. b6 {[%clk 0:01:58.7]} 27... Rg6 {[%clk 0:02:51.6]} 28.
Kh1 {[%clk 0:01:45.7]} 28... Qf4 {[%clk 0:02:42.4]} 29. Qe3 {[%clk 0:01:44.3]}
29... Qxe3 {[%clk 0:02:29.3]} 30. R1xe3 {[%clk 0:01:42.9]} 30... Kf7 {[%clk
0:02:20.5]} 31. Kg1 {[%clk 0:01:40.5]} 31... Rf6 {[%clk 0:02:06.5]} 32. Kf2
{[%clk 0:01:38.5]} 32... g5 {[%clk 0:02:04.9]} 33. h3 {[%clk 0:01:30.5]} 33...
Kg6 {[%clk 0:02:00.2]} 34. Ke1 {[%clk 0:01:23]} 34... Kf7 {[%clk 0:01:57.7]} 35.
Kd2 {[%clk 0:01:22.2]} 35... Re8 {[%clk 0:01:49.2]} 36. Nc2 {[%clk 0:01:16.7]}
36... Bxc2 {[%clk 0:01:47.5]} 37. Kxc2 {[%clk 0:01:16.6]} 37... Rf5 {[%clk
0:01:44.7]} 38. Rxf5+ {[%clk 0:01:13.5]} 38... exf5 {[%clk 0:01:43.4]} 39. Rxe8
{[%clk 0:01:05]} 39... Kxe8 {[%clk 0:01:42.3]} 40. f4 {[%clk 0:01:04.2]} 40...
g4 {[%clk 0:01:36.9]} 41. Kd3 {[%clk 0:01:02.8]} 41... Kf7 {[%clk 0:01:34.9]}
42. Ke3 {[%clk 0:01:01.9]} 42... Kf6 {[%clk 0:01:33.7]} 43. Kf2 {[%clk
0:01:00.9]} 43... g3+ {[%clk 0:01:32.1]} 44. Kf3 {[%clk 0:01:00.2]} 44... Ke6
{[%clk 0:01:30.9]} 45. Ke3 {[%clk 0:01:00.1]} 45... Kf6 {[%clk 0:01:30.2]} 46.
Kf3 {[%clk 0:00:57.7]} 1/2-1/2

[Event "Live Chess"]
[Site "Chess.com"]
[Date "2023.05.21"]
[Round "-"]
[White "Conradical12"]
[Black "wot-not"]
[Result "0-1"]
[WhiteElo "1507"]
[BlackElo "1539"]
[TimeControl "300"]
[EndTime "8:40:37 PDT"]
[Termination "wot-not won by resignation"]

1. e4 {[%clk 0:04:57.9]} 1... e6 {[%clk 0:04:58.5]} 2. Nf3 {[%clk 0:04:55]} 2...
d5 {[%clk 0:04:57.9]} 3. exd5 {[%clk 0:04:53.6]} 3... exd5 {[%clk 0:04:56.8]} 4.
d4 {[%clk 0:04:53]} 4... Nf6 {[%clk 0:04:56]} 5. Nc3 {[%clk 0:04:50.8]} 5... Bd6
{[%clk 0:04:54.2]} 6. Bg5 {[%clk 0:04:50.2]} 6... O-O {[%clk 0:04:52.2]} 7. Be2
{[%clk 0:04:49.6]} 7... c6 {[%clk 0:04:49.7]} 8. Qd3 {[%clk 0:04:48.9]} 8...
Nbd7 {[%clk 0:04:48.7]} 9. O-O-O {[%clk 0:04:48.2]} 9... Qa5 {[%clk 0:04:45.3]}
10. Rhe1 {[%clk 0:04:46.7]} 10... Bb4 {[%clk 0:04:42.3]} 11. Ne5 {[%clk
0:04:43.2]} 11... Bxc3 {[%clk 0:04:38.6]} 12. Qxc3 {[%clk 0:04:40.5]} 12... Qxc3
{[%clk 0:04:37.6]} 13. bxc3 {[%clk 0:04:39.2]} 13... Nxe5 {[%clk 0:04:35.8]} 14.
dxe5 {[%clk 0:04:37]} 14... Ne4 {[%clk 0:04:35.2]} 15. Rd3 {[%clk 0:04:35.4]}
15... Nxg5 {[%clk 0:04:32.9]} 16. Bh5 {[%clk 0:04:32.9]} 16... Ne4 {[%clk
0:04:18.2]} 17. Rf3 {[%clk 0:04:25.1]} 17... Be6 {[%clk 0:04:11.4]} 18. c4
{[%clk 0:04:21.8]} 18... b5 {[%clk 0:04:05.4]} 19. cxd5 {[%clk 0:04:19.7]} 19...
cxd5 {[%clk 0:04:03.7]} 20. g4 {[%clk 0:04:16.7]} 20... Rac8 {[%clk 0:04:02.3]}
21. Rg1 {[%clk 0:04:13]} 21... Rc3 {[%clk 0:03:58.5]} 22. Rxc3 {[%clk
0:04:10.2]} 22... Nxc3 {[%clk 0:03:57.6]} 23. Kd2 {[%clk 0:04:09.7]} 23... Nxa2
{[%clk 0:03:56]} 24. g5 {[%clk 0:04:08.9]} 24... Nb4 {[%clk 0:03:38.9]} 25. g6
{[%clk 0:04:04.8]} 25... hxg6 {[%clk 0:03:36.6]} 26. Bxg6 {[%clk 0:04:04.7]}
26... fxg6 {[%clk 0:03:35.6]} 27. Rxg6 {[%clk 0:04:04.3]} 27... Bf5 {[%clk
0:03:25.6]} 28. Rd6 {[%clk 0:04:00.6]} 28... Bxc2 {[%clk 0:03:22.2]} 29. e6
{[%clk 0:03:59.7]} 29... Rxf2+ {[%clk 0:03:20.3]} 30. Ke3 {[%clk 0:03:57.5]}
30... Rf8 {[%clk 0:03:17.6]} 31. e7 {[%clk 0:03:55.1]} 31... Re8 {[%clk
0:03:16.7]} 32. Rd8 {[%clk 0:03:54.1]} 32... Kf7 {[%clk 0:03:16.1]} 33. Ra8
{[%clk 0:03:51.7]} 33... Rxe7+ {[%clk 0:03:15]} 0-1

[Event "Live Chess"]
[Site "Chess.com"]
[Date "2023.05.21"]
[Round "-"]
[White "Ocelot32"]
[Black "FierceFighter2000"]
[Result "1/2-1/2"]
[WhiteElo "1428"]
[BlackElo "2046"]
[TimeControl "300"]
[EndTime "8:40:49 PDT"]
[Termination "Game drawn by repetition"]

1. e4 {[%clk 0:04:58.2]} 1... c6 {[%clk 0:04:59.4]} 2. Nf3 {[%clk 0:04:53.7]}
2... d5 {[%clk 0:04:58.4]} 3. Nc3 {[%clk 0:04:53.1]} 3... dxe4 {[%clk
0:04:55.9]} 4. Nxe4 {[%clk 0:04:52.1]} 4... Nf6 {[%clk 0:04:55.6]} 5. Qe2 {[%clk
0:04:50.7]} 5... Nxe4 {[%clk 0:04:52.2]} 6. Qxe4 {[%clk 0:04:49.3]} 6... Nd7
{[%clk 0:04:51.9]} 7. Bc4 {[%clk 0:04:46.8]} 7... Nf6 {[%clk 0:04:51.1]} 8. Qe2
{[%clk 0:04:44.8]} 8... e6 {[%clk 0:04:45.8]} 9. O-O {[%clk 0:04:42]} 9... Bd6
{[%clk 0:04:45.2]} 10. d4 {[%clk 0:04:40.6]} 10... O-O {[%clk 0:04:44.4]} 11.
Bd3 {[%clk 0:04:39.1]} 11... h6 {[%clk 0:04:41.7]} 12. Ne5 {[%clk 0:04:31.1]}
12... c5 {[%clk 0:04:34.3]} 13. c3 {[%clk 0:04:26.7]} 13... cxd4 {[%clk
0:04:32.4]} 14. cxd4 {[%clk 0:04:25.5]} 14... Nd7 {[%clk 0:03:58.8]} 15. Qe4
{[%clk 0:04:11.7]} 15... Nf6 {[%clk 0:03:35.4]} 16. Qf3 {[%clk 0:04:10.4]} 16...
Bxe5 {[%clk 0:03:15.7]} 17. dxe5 {[%clk 0:04:07.6]} 17... Nd5 {[%clk 0:03:15.3]}
18. Qe4 {[%clk 0:04:05.1]} 18... f5 {[%clk 0:03:08.6]} 19. exf6 {[%clk
0:04:00.7]} 19... Nxf6 {[%clk 0:03:07.6]} 20. Qe3 {[%clk 0:03:46.5]} 20... Nd5
{[%clk 0:02:48.2]} 21. Qe4 {[%clk 0:03:40.1]} 21... Nf6 {[%clk 0:02:47.4]} 22.
Qe3 {[%clk 0:03:38.4]} 22... Nd5 {[%clk 0:02:31.7]} 23. Qe4 {[%clk 0:03:36.8]}
23... Nf6 {[%clk 0:02:26.9]} 1/2-1/2

[Event "Live Chess"]
[Site "Chess.com"]
[Date "2023.05.21"]
[Round "-"]
[White "TheSmoulderingMaster"]
[Black "SavagePawn7"]
[Result "1-0"]
[WhiteElo "1659"]
[BlackElo "775"]
[TimeControl "300"]
[EndTime "8:40:50 PDT"]
[Termination "TheSmoulderingMaster won by checkmate"]

1. e4 {[%clk 0:04:59]} 1... d5 {[%clk 0:04:54.3]} 2. exd5 {[%clk 0:04:58]} 2...
Nf6 {[%clk 0:04:52.5]} 3. Bb5+ {[%clk 0:04:56.2]} 3... Bd7 {[%clk 0:04:48.9]} 4.
Bc4 {[%clk 0:04:55.4]} 4... e6 {[%clk 0:04:44.1]} 5. dxe6 {[%clk 0:04:53.8]}
5... Bxe6 {[%clk 0:04:41.6]} 6. Bxe6 {[%clk 0:04:51.6]} 6... fxe6 {[%clk
0:04:39.8]} 7. Nf3 {[%clk 0:04:51]} 7... Nc6 {[%clk 0:04:37.2]} 8. O-O {[%clk
0:04:49.7]} 8... Bc5 {[%clk 0:04:33.4]} 9. c3 {[%clk 0:04:47.7]} 9... Qe7 {[%clk
0:04:22.6]} 10. d4 {[%clk 0:04:45.2]} 10... Bd6 {[%clk 0:04:20]} 11. Bg5 {[%clk
0:04:43.9]} 11... O-O-O {[%clk 0:04:17.5]} 12. Nbd2 {[%clk 0:04:42.4]} 12... h6
{[%clk 0:04:14.8]} 13. Bh4 {[%clk 0:04:40.9]} 13... g5 {[%clk 0:04:13.4]} 14.
Bg3 {[%clk 0:04:40]} 14... Rdg8 {[%clk 0:04:09.8]} 15. Nc4 {[%clk 0:04:35.8]}
15... g4 {[%clk 0:04:08.4]} 16. Bxd6 {[%clk 0:04:31.7]} 16... cxd6 {[%clk
0:04:07.2]} 17. Nfd2 {[%clk 0:04:28.8]} 17... h5 {[%clk 0:04:04.4]} 18. Qa4
{[%clk 0:04:26.6]} 18... h4 {[%clk 0:03:52.9]} 19. b4 {[%clk 0:04:23.6]} 19...
g3 {[%clk 0:03:51.4]} 20. hxg3 {[%clk 0:04:20.9]} 20... hxg3 {[%clk 0:03:49.8]}
21. fxg3 {[%clk 0:04:20.5]} 21... Rxg3 {[%clk 0:03:47.5]} 22. b5 {[%clk
0:04:17.1]} 22... Qg7 {[%clk 0:03:24.5]} 23. Rf2 {[%clk 0:04:07.7]} 23... Ng4
{[%clk 0:03:17.2]} 24. Nxd6+ {[%clk 0:04:02.4]} 24... Kc7 {[%clk 0:03:12]} 25.
Rf7+ {[%clk 0:04:00.8]} 25... Qxf7 {[%clk 0:03:03.1]} 26. Nxf7 {[%clk
0:03:59.7]} 26... Re8 {[%clk 0:02:55.1]} 27. bxc6 {[%clk 0:03:57]} 27... b6
{[%clk 0:02:49.5]} 28. Qxa7+ {[%clk 0:03:54.7]} 28... Kc8 {[%clk 0:02:35.2]} 29.
Qb7# {[%clk 0:03:51]} 1-0